bitfinex-derivatives/quotes_BNBF0:USTF0_20250326
["timestamp","ask_amount","ask_price","bid_price","bid_amount"]
[1743002519448,7.753,625.2,624.79,0.26011299]
[1743002519947,7.753,625.2,624.8,0.32010243]
[1743002521951,9.713,625.2,624.8,0.32010243]
[1743002523454,9.713,625.2,624.81,0.26032611]
[1743002523654,9.713,625.2,624.8,0.32010243]
[1743002531953,9.713,625.2,624.81,0.26037225]
[1743002534860,9.713,625.2,624.82,1.1918082]
[1743002535161,9.713,625.2,624.83,0.26037225]
[1743002535665,11.683,625.2,624.83,0.26037225]
[1743002536762,11.683,625.2,624.82,1.1918082]
[1743002537161,11.683,625.2,624.83,0.26023457]
[1743002537865,11.683,625.2,624.96,1.19227595]
[1743002538265,3.92,625.2,624.96,1.19227595]
[1743002540267,3.92,625.2,624.97,0.26024994]
[1743002540462,3.416,625.2,624.98,0.26024994]
[1743002540663,3.416,625.2,624.99,0.26024994]
[1743002540861,3.416,625.2,624.9,1.19227595]
[1743002541063,3.416,625.2,624.91,0.26024941]
[1743002541267,5.316,625.2,624.91,0.26024941]
[1743002541569,6.88,625.2,624.91,0.26024941]
[1743002542067,8.477,625.2,624.91,0.26024941]
[1743002542268,9.923,625.2,624.91,0.26024941]
[1743002543373,9.923,625.2,624.95,1.19227595]
[1743002543669,8.981,625.2,624.96,0.26024941]
[1743002545373,8.981,625.2,624.95,1.19227595]
[1743002545873,8.981,625.2,624.96,1.45247233]
[1743002546073,8.981,625.2,624.96,1.19227595]
[1743002547375,8.981,625.2,624.97,0.32001536]
[1743002553581,8.981,625.2,624.98,0.26029532]
[1743002554578,8.477,625.2,624.98,0.26029532]
[1743002555580,8.477,625.2,624.99,0.26031877]
[1743002555777,8.477,625.2,624.97,0.32001536]
[1743002561387,7.031,625.2,624.97,0.32001536]
[1743002564192,5.131,625.2,624.97,0.32001536]
[1743002566993,5.131,625.2,625.0,1.19227595]
[1743002568693,3.567,625.2,625.0,1.19227595]
[1743002568995,3.567,625.2,625.02,1.19227595]
[1743002569595,3.567,625.2,625.03,0.26038767]
[1743002571097,1.97,625.2,625.03,0.26038767]
[1743002572997,1.97,625.2,625.04,0.26038767]
[1743002573196,1.97,625.2,625.05,0.26038767]
[1743002573396,1.97,625.2,625.02,0.26038767]
[1743002573600,1.97,625.2,625.03,0.26038767]
[1743002573803,1.97,625.2,625.02,0.26038767]
[1743002574002,1.97,625.2,625.01,1.1918082]
[1743002574800,1.97,625.2,625.02,1.1918082]
[1743002576905,2.919,625.23,625.02,1.1918082]
[1743002577606,2.919,625.23,625.15,1.19479834]
[1743002580712,2.919,625.23,625.14,1.19479834]
[1743002582711,2.919,625.23,625.09,1.1918082]
[1743002583612,1.694,625.23,625.09,1.1918082]
[1743002584813,1.694,625.23,625.12,1.19510452]
[1743002585612,1.19,625.23,625.12,1.19510452]
[1743002588122,1.465,625.26,625.12,1.19510452]
[1743002588722,1.465,625.26,625.13,1.19510452]
[1743002590528,1.465,625.26,625.12,1.19510452]
[1743002592833,1.465,625.26,625.16,1.19510452]
[1743002594732,3.313,625.29,625.2,1.19510452]
[1743002597232,3.313,625.29,625.19,1.19510452]
[1743002599741,3.313,625.29,625.1,1.1918082]
[1743002599931,1.229,625.29,625.11,0.26044083]
[1743002601037,1.229,625.29,625.1,1.1918082]
[1743002601635,1.229,625.29,625.11,0.2604103]
[1743002603145,1.826,625.38,625.21,1.19322022]
[1743002603835,1.826,625.38,625.22,0.26036154]
[1743002604941,1.826,625.38,625.21,1.19322022]
[1743002605841,1.826,625.38,624.96,1.1918082]
[1743002605842,1.826,625.38,625.31,1.19322022]
[1743002606945,1.322,625.38,625.31,1.19322022]
[1743002608748,1.322,625.38,625.14,1.19322022]
[1743002611552,1.322,625.38,625.12,0.27819858]
[1743002611752,1.322,625.38,625.12,0.59813715]
[1743002613154,1.322,625.38,625.13,0.26026566]
[1743002617358,1.705,625.39,625.12,0.31993857]
[1743002617554,1.705,625.39,625.28,1.19322022]
[1743002617757,1.705,625.39,625.29,0.26030978]
[1743002618058,1.705,625.39,625.28,1.19322022]
[1743002619457,1.705,625.39,625.2,1.19322022]
[1743002621962,1.705,625.39,625.17,1.19322022]
[1743002623762,1.705,625.39,625.2,1.19322022]
[1743002626267,1.705,625.39,625.22,1.19322022]
[1743002627368,1.705,625.39,625.23,0.26008205]
[1743002627867,1.705,625.39,625.28,1.19322022]
[1743002630168,1.705,625.39,625.31,1.19322022]
[1743002630668,1.705,625.39,625.32,0.26016913]
[1743002631266,1.705,625.39,625.31,1.19322022]
[1743002631468,1.705,625.39,625.32,0.26012268]
[1743002632265,1.705,625.39,625.31,1.19322022]
[1743002632666,1.705,625.39,625.32,0.26009866]
[1743002632870,1.705,625.39,625.31,1.19322022]
[1743002633064,1.705,625.39,625.22,0.27815411]
[1743002633367,1.705,625.39,625.23,0.58000115]
[1743002633669,1.705,625.39,625.24,0.26011887]
[1743002637372,1.705,625.39,625.24,0.57999603]
[1743002637566,0.503,625.4,625.25,0.26011887]
[1743002640866,1.481,625.43,625.25,0.26011887]
[1743002643769,1.481,625.43,625.26,1.1918082]
[1743002643974,1.481,625.43,625.27,0.26011887]
[1743002644167,1.481,625.43,625.28,0.25994329]
[1743002644374,1.481,625.43,625.29,0.25994329]
[1743002644573,1.481,625.43,625.27,0.25994329]
[1743002645971,1.481,625.43,625.39,1.1918082]
[1743002648684,1.481,625.43,625.42,1.19098632]
[1743002651179,1.481,625.43,625.29,0.27811966]
[1743002651377,1.481,625.43,625.3,0.57970611]
[1743002651577,1.481,625.43,625.31,0.25985964]
[1743002652183,1.481,625.43,625.31,0.57970099]
[1743002652383,1.481,625.43,625.32,0.25985964]
[1743002652984,1.775,625.5,625.32,0.25985964]
[1743002654179,1.775,625.5,625.31,0.31984135]
[1743002655186,1.775,625.5,625.32,0.25989179]
[1743002656683,1.775,625.5,625.47,1.1906025]
[1743002659884,1.775,625.5,625.48,1.1906025]
[1743002662391,1.775,625.5,625.32,1.1918082]
[1743002662584,1.775,625.5,625.33,0.25999958]
[1743002664491,1.775,625.5,625.33,1.45180778]
[1743002664790,1.775,625.5,625.34,0.25999958]
[1743002664985,0.503,625.51,625.34,0.25999958]
[1743002666794,0.503,625.51,625.37,1.1918082]
[1743002667294,1.771,625.57,625.37,1.1918082]
[1743002669995,1.771,625.57,625.43,1.19187623]
[1743002672096,1.771,625.57,625.4,1.19187623]
[1743002673998,1.771,625.57,625.38,1.19187623]
[1743002676899,1.771,625.57,625.39,1.19187623]
[1743002677099,1.771,625.57,625.4,0.25979468]
[1743002679402,1.771,625.57,625.44,1.1918082]
[1743002679602,1.771,625.57,625.45,0.25979468]
[1743002682002,1.771,625.57,625.44,0.25979468]
[1743002682401,1.771,625.57,625.43,1.1918082]
[1743002682603,1.824,625.62,625.43,1.1918082]
[1743002683401,1.329,625.66,625.43,1.1918082]
[1743002683903,1.329,625.66,625.31,0.31984135]
[1743002685912,1.792,625.64,625.31,0.31984135]
[1743002686311,3.666,625.64,625.31,0.31984135]
[1743002687112,1.395,625.63,625.31,0.31984135]
[1743002693013,1.395,625.63,625.32,0.26004822]
[1743002693717,1.395,625.63,625.39,1.19162988]
[1743002693913,0.503,625.62,625.39,1.19162988]
[1743002695614,0.503,625.62,625.44,1.19162988]
[1743002698620,0.503,625.62,625.41,1.19162988]
[1743002700716,0.503,625.62,625.38,1.19162988]
[1743002701221,1.22848028,625.61,625.38,1.19162988]
[1743002701418,0.503,625.62,625.38,1.19162988]
[1743002701615,2.14270713,625.61,625.38,1.19162988]
[1743002701816,0.91449923,625.61,625.38,1.19162988]
[1743002702222,0.503,625.62,625.38,1.19162988]
[1743002702923,0.503,625.62,625.31,0.31984135]
[1743002703321,1.321,625.61,625.31,0.31984135]
[1743002704722,1.321,625.61,625.32,1.19162988]
[1743002707026,1.56,625.6,625.32,1.19162988]
[1743002708025,1.22737534,625.59,625.32,1.19162988]
[1743002708226,1.56,625.6,625.32,1.19162988]
[1743002708227,1.22737534,625.58,625.32,1.19162988]
[1743002708527,2.14076956,625.57,625.32,1.19162988]
[1743002708728,1.22737534,625.56,625.32,1.19162988]
[1743002708927,1.22737534,625.55,625.32,1.19162988]
[1743002709127,1.22737534,625.54,625.32,1.19162988]
[1743002709326,1.22737534,625.53,625.32,1.19162988]
[1743002709529,1.22737534,625.52,625.18,1.19162988]
[1743002709724,1.22737534,625.51,625.18,1.19162988]
[1743002709930,1.22737534,625.5,625.18,1.19162988]
[1743002710230,1.22737534,625.49,625.18,1.19162988]
[1743002710433,1.22737534,625.48,625.18,1.19162988]
[1743002710635,1.22737534,625.47,625.18,1.19162988]
[1743002710829,1.22737534,625.46,625.18,1.19162988]
[1743002711030,0.91339422,625.47,625.18,1.19162988]
[1743002711435,1.253,625.58,625.18,1.19162988]
[1743002711736,1.253,625.58,624.91,0.27824085]
[1743002711737,1.22503254,625.57,624.98,1.19162988]
[1743002711931,1.22503254,625.56,624.99,0.26058166]
[1743002712237,1.22503254,625.55,624.99,0.26058166]
[1743002712531,1.22503254,625.54,624.99,0.26058166]
[1743002712737,1.22503254,625.53,624.99,0.26058166]
[1743002712933,1.22503254,625.52,624.99,0.26058166]
[1743002713133,1.22503254,625.51,624.99,0.26058166]
[1743002713333,1.22503254,625.5,624.99,0.26058166]
[1743002713537,1.22503254,625.49,624.99,0.26058166]
[1743002713838,0.91200592,625.51,624.99,0.26058166]
[1743002714040,1.22401797,625.5,624.99,0.26058166]
[1743002714341,0.502,625.5,624.99,0.26058166]
[1743002715137,0.502,625.5,625.0,0.26058166]
[1743002715335,0.502,625.5,624.92,0.26058166]
[1743002715539,0.502,625.5,624.93,0.26058166]
[1743002715742,0.502,625.5,624.92,0.26058166]
[1743002715941,0.502,625.5,624.94,0.26058166]
[1743002716141,0.502,625.5,624.91,0.27826087]
[1743002716142,0.502,625.5,624.95,0.26062768]
[1743002716350,0.502,625.5,624.9,0.26062768]
[1743002716940,1.22278291,625.49,624.9,0.26062768]
[1743002717137,0.502,625.5,624.89,0.26062768]
[1743002719442,0.502,625.5,624.9,0.2606494]
[1743002719745,1.143,625.49,624.91,0.2606494]
[1743002719944,1.143,625.49,624.92,0.2606494]
[1743002720141,1.143,625.49,624.87,0.2606494]
[1743002720339,1.143,625.49,624.88,0.2606494]
[1743002720645,1.143,625.49,624.86,0.27827756]
[1743002721440,2.13033634,625.48,624.86,0.27827756]
[1743002721746,1.22117405,625.47,624.86,0.27827756]
[1743002721939,1.22117405,625.46,624.86,0.27827756]
[1743002722145,0.90917383,625.47,624.61,1.19162988]
[1743002722344,1.22088661,625.46,624.62,0.58095869]
[1743002722646,2.54184488,625.45,624.63,0.58095357]
[1743002722848,1.321,625.45,624.64,0.58094844]
[1743002723146,1.321,625.45,624.65,0.26076402]
[1743002723456,1.321,625.45,624.65,0.53909277]
[1743002723645,1.321,625.45,624.66,0.58093819]
[1743002723845,1.321,625.45,624.67,0.58093306]
[1743002724048,1.321,625.45,624.68,0.58092794]
[1743002724247,1.321,625.45,624.69,0.58092281]
[1743002724442,1.321,625.45,624.69,0.32015879]
[1743002724641,2.46,625.45,624.7,0.2607618]
[1743002724843,2.46,625.45,624.69,0.32015879]
[1743002725046,1.22023129,625.44,624.69,0.32015879]
[1743002725247,1.22023129,625.43,624.7,0.26084577]
[1743002725549,2.12876605,625.42,624.7,0.26084577]
[1743002725746,1.22023129,625.41,624.7,0.26084577]
[1743002725947,2.12876605,625.4,624.7,0.26084577]
[1743002726145,1.22023129,625.39,624.7,0.26084577]
[1743002726343,2.12876605,625.38,624.69,0.32015879]
[1743002726549,1.22023129,625.37,624.69,0.32015879]
[1743002726753,1.22023129,625.36,624.69,0.32015879]
[1743002727049,1.22023129,625.35,624.69,0.32015879]
[1743002727249,1.22023129,625.34,624.69,0.32015879]
[1743002727450,1.22023129,625.33,624.69,0.32015879]
[1743002727745,1.22023129,625.32,624.69,0.32015879]
[1743002727960,1.22023129,625.31,624.69,0.32015879]
[1743002728145,1.22023129,625.3,624.69,0.32015879]
[1743002728347,1.22023129,625.29,624.69,0.32015879]
[1743002728556,1.21875362,625.28,624.69,0.32015879]
[1743002728845,2.12728838,625.27,624.69,0.32015879]
[1743002729052,1.21875362,625.26,624.69,0.32015879]
[1743002729246,2.12728838,625.25,624.69,0.32015879]
[1743002729452,1.21875362,625.24,624.69,0.32015879]
[1743002729651,1.21875362,625.23,624.69,0.32015879]
[1743002729952,1.21875362,625.22,624.69,0.32015879]
[1743002730153,0.90853476,625.23,624.69,0.32015879]
[1743002730451,1.023,625.28,624.69,0.32015879]
[1743002730652,1.21770923,625.27,624.69,0.32015879]
[1743002730846,2.12439503,625.26,624.69,0.32015879]
[1743002731045,1.21770923,625.25,624.69,0.32015879]
[1743002731247,1.21770923,625.24,624.69,0.32015879]
[1743002731450,1.21770923,625.23,624.69,0.32015879]
[1743002731653,0.9066858,625.24,624.69,0.32015879]
[1743002731846,0.9066858,625.27,624.69,0.32015879]
[1743002732050,1.21726382,625.26,624.69,0.32015879]
[1743002732247,1.21726382,625.25,624.69,0.32015879]
[1743002732450,1.21726382,625.24,624.69,0.32015879]
[1743002732653,1.21726382,625.23,624.69,0.32015879]
[1743002732853,0.9066858,625.26,624.69,0.32015879]
[1743002733152,1.21692661,625.25,624.69,0.32015879]
[1743002733353,0.9066858,625.25,624.69,0.32015879]
[1743002733947,0.9066858,625.27,624.69,0.32015879]
[1743002734152,1.21655173,625.26,624.69,0.32015879]
[1743002734351,1.21655173,625.25,624.69,0.32015879]
[1743002734554,1.21655173,625.24,624.69,0.32015879]
[1743002734754,1.21655173,625.23,624.69,0.32015879]
[1743002734954,0.9066858,625.26,624.69,0.32015879]
[1743002735155,1.21629526,625.25,624.69,0.32015879]
[1743002735352,1.21629526,625.24,624.69,0.32015879]
[1743002735550,1.21629526,625.23,624.69,0.32015879]
[1743002735754,1.21629526,625.22,624.69,0.32015879]
[1743002735948,1.21629526,625.21,624.69,0.32015879]
[1743002736152,1.21609009,625.2,624.69,0.32015879]
[1743002736350,0.9066858,625.21,624.69,0.32015879]
[1743002736554,1.21574738,625.2,624.69,0.32015879]
[1743002736756,1.567,625.2,624.69,0.32015879]
[1743002737157,1.21581282,625.19,624.69,0.32015879]
[1743002737355,4.2426858,625.2,624.69,0.32015879]
[1743002738153,3.336,625.2,624.69,0.32015879]
[1743002740056,1.21526326,625.19,624.69,0.32015879]
[1743002740257,1.21526326,625.18,624.69,0.32015879]
[1743002740456,0.90468824,625.19,624.69,0.32015879]
[1743002740854,1.21508075,625.19,624.69,0.32015879]
[1743002741255,3.336,625.2,624.69,0.32015879]
[1743002742351,1.21488803,625.19,624.69,0.32015879]
[1743002742656,3.336,625.2,624.69,0.32015879]
[1743002744859,1.21472678,625.19,624.69,0.32015879]
[1743002745059,3.336,625.2,624.69,0.32015879]
[1743002745459,1.21468067,625.19,624.69,0.32015879]
[1743002745661,1.21468067,625.18,624.69,0.32015879]
[1743002745959,1.21468067,625.19,624.69,0.32015879]
[1743002746161,1.21456079,625.19,624.69,0.32015879]
[1743002746356,1.21456079,625.18,624.69,0.32015879]
[1743002746661,2.1191486,625.17,624.42,1.19162988]
[1743002746863,1.21456079,625.16,624.43,0.26120893]
[1743002747059,0.90458781,625.17,624.43,0.26120893]
[1743002747060,1.21456079,625.15,624.43,0.26120893]
[1743002747260,1.21456079,625.14,624.43,0.26120893]
[1743002747456,1.21456079,625.13,624.43,0.26120893]
[1743002747659,1.21456079,625.18,624.43,0.53967465]
[1743002747864,1.21456079,625.17,624.44,0.26120893]
[1743002748061,1.21456079,625.16,624.44,0.26120893]
[1743002748260,1.21456079,625.15,624.44,0.26120893]
[1743002748463,1.40658781,625.19,624.44,0.26120893]
[1743002748661,1.21473054,625.18,624.44,0.26120893]
[1743002748858,1.21473054,625.17,624.44,0.26120893]
[1743002749060,1.21473054,625.16,624.44,0.26120893]
[1743002749362,1.40658781,625.19,624.44,0.26120893]
[1743002749562,1.21479311,625.18,624.36,0.26120893]
[1743002749758,1.40658781,625.19,624.37,0.58153181]
[1743002749759,1.21479311,625.17,624.37,0.58153181]
[1743002749960,1.21479311,625.16,624.38,0.32031775]
[1743002750262,1.21479311,625.15,624.39,0.26120893]
[1743002750458,1.21488046,625.14,624.39,0.26120893]
[1743002750664,1.21489326,625.13,624.44,1.19162988]
[1743002750864,1.21489326,625.12,624.45,0.26120893]
[1743002751062,1.21489326,625.11,624.45,0.26120893]
[1743002751258,1.21489326,625.1,624.45,0.26120893]
[1743002751464,1.21489326,625.14,624.45,0.26120893]
[1743002751664,1.075,625.09,624.45,0.26120893]
[1743002753369,1.075,625.09,624.46,0.26118091]
[1743002753668,1.075,625.09,624.47,0.26118091]
[1743002753882,1.075,625.09,624.44,0.26118091]
[1743002755269,1.081,625.08,624.44,0.26118091]
[1743002755667,1.081,625.08,624.52,1.19162988]
[1743002755969,1.081,625.08,624.53,0.26118091]
[1743002756167,2.606,625.08,624.53,0.26118091]
[1743002756368,4.03,625.08,624.54,0.26119731]
[1743002756569,4.03,625.08,624.55,0.26119731]
[1743002756762,4.03,625.08,624.56,0.26119731]
[1743002757069,4.03,625.08,624.57,0.26119731]
[1743002757269,4.03,625.08,624.53,0.26119731]
[1743002757470,4.03,625.08,624.54,0.26119731]
[1743002757770,4.03,625.08,624.55,0.26119731]
[1743002757974,4.03,625.08,624.42,0.27846126]
[1743002757975,4.03,625.08,624.56,1.45282719]
[1743002758270,4.03,625.08,624.57,0.26119731]
[1743002760071,4.03,625.08,624.65,1.19162988]
[1743002762369,4.03,625.08,624.71,1.19162988]
[1743002765678,4.03,625.08,624.76,1.19162988]
[1743002767879,4.03,625.08,624.8,1.19162988]
[1743002768680,5.454,625.08,624.8,1.19162988]
[1743002769985,5.454,625.08,624.86,1.19162988]
[1743002771786,5.454,625.08,624.85,1.19162988]
[1743002773390,4.373,625.08,624.85,1.19162988]
[1743002774191,1.22322803,625.07,624.85,1.19162988]
[1743002774385,2.13415187,625.06,624.85,1.19162988]
[1743002774586,1.22322803,625.05,624.85,1.19162988]
[1743002774900,1.22322803,625.04,624.85,1.19162988]
[1743002775086,1.22322803,625.03,624.85,1.19162988]
[1743002775284,1.22322803,625.02,624.85,1.19162988]
[1743002775485,4.373,625.08,624.85,1.19162988]
[1743002775689,1.22367731,625.07,624.75,1.19162988]
[1743002775890,1.22367731,625.06,624.75,1.19162988]
[1743002776189,1.22367731,625.05,624.75,1.19162988]
[1743002776385,0.91118926,625.07,624.75,1.19162988]
[1743002776386,1.22367731,625.04,624.75,1.19162988]
[1743002776689,1.22367731,625.03,624.75,1.19162988]
[1743002776885,1.22367731,625.02,624.75,1.19162988]
[1743002777086,1.22367731,625.01,624.75,1.19162988]
[1743002777288,1.22432112,625.0,624.75,1.19162988]
[1743002777488,0.91118926,625.02,624.75,1.19162988]
[1743002777694,0.91118926,625.0,624.75,1.19162988]
[1743002777989,1.331,625.03,624.75,1.19162988]
[1743002778198,1.22432037,625.02,624.75,1.19162988]
[1743002778392,1.22432037,625.01,624.75,1.19162988]
[1743002778600,1.22432037,625.0,624.75,1.19162988]
[1743002778793,1.22432037,624.99,624.75,1.19162988]
[1743002778994,0.9119648,625.01,624.75,1.19162988]
[1743002779201,1.22472274,625.0,624.75,1.19162988]
[1743002779494,1.22472274,624.99,624.75,1.19162988]
[1743002779695,0.91230988,624.98,624.75,1.19162988]
[1743002780296,1.331,625.03,624.75,1.19162988]
[1743002780597,1.22567888,625.02,624.75,1.19162988]
[1743002780794,1.22567888,625.01,624.75,1.19162988]
[1743002780993,1.22567888,625.0,624.75,1.19162988]
[1743002781288,1.22567888,624.99,624.75,1.19162988]
[1743002781496,1.22567888,624.98,624.75,1.19162988]
[1743002781793,1.22567888,624.97,624.75,1.19162988]
[1743002781994,1.22567888,624.96,624.75,1.19162988]
[1743002782195,1.22567888,624.95,624.75,1.19162988]
[1743002782494,1.22567888,624.94,624.75,1.19162988]
[1743002782793,1.22685994,624.93,624.75,1.19162988]
[1743002782995,0.91270758,624.95,624.75,1.19162988]
[1743002783190,1.22686178,624.94,624.74,1.19162988]
[1743002783394,1.331,625.03,624.74,1.19162988]
[1743002783395,1.22686178,624.93,624.74,1.19162988]
[1743002783594,1.22686178,624.92,624.74,1.19162988]
[1743002783794,1.331,625.03,624.74,1.19162988]
[1743002783990,2.59542747,625.02,624.74,1.19162988]
[1743002784192,1.22742747,625.01,624.74,1.19162988]
[1743002784396,1.22742747,625.0,624.74,1.19162988]
[1743002784595,1.22742747,624.99,624.74,1.19162988]
[1743002784797,1.22742747,624.98,624.74,1.19162988]
[1743002784997,1.2280745,624.97,624.74,1.19162988]
[1743002785194,1.2280745,624.96,624.74,1.19162988]
[1743002785397,1.2280745,624.95,624.74,1.19162988]
[1743002785597,1.423,625.01,624.74,1.19162988]
[1743002785598,2.14255795,624.94,624.74,1.19162988]
[1743002785797,1.2280745,624.93,624.74,1.19162988]
[1743002786097,1.2280745,624.92,624.74,1.19162988]
[1743002786298,1.2280745,624.91,624.74,1.19162988]
[1743002786493,0.91448345,624.93,624.74,1.19162988]
[1743002786693,1.22896175,624.92,624.74,1.19162988]
[1743002786897,1.22896175,624.91,624.74,1.19162988]
[1743002787093,0.91448345,624.92,624.74,1.19162988]
[1743002787299,1.22918688,624.91,624.74,1.19162988]
[1743002787499,1.423,625.01,624.74,1.19162988]
[1743002787699,1.22919055,625.0,624.75,1.19162988]
[1743002788000,1.22919055,624.99,624.75,1.19162988]
[1743002788197,1.22919055,624.98,624.75,1.19162988]
[1743002788398,1.22919055,624.97,624.75,1.19162988]
[1743002788698,1.22919055,624.96,624.75,1.19162988]
[1743002788898,1.22919055,624.95,624.75,1.19162988]
[1743002789099,1.22919055,624.94,624.75,1.19162988]
[1743002789300,1.22919055,624.93,624.75,1.19162988]
[1743002789499,1.22919055,624.92,624.75,1.19162988]
[1743002789700,1.22919055,624.91,624.75,1.19162988]
[1743002789901,0.91528244,624.91,624.75,1.19162988]
[1743002790607,3.022,625.01,624.75,1.19162988]
[1743002790901,1.22940771,625.0,624.75,1.19162988]
[1743002791103,1.22940771,624.99,624.75,1.19162988]
[1743002791302,1.22940771,624.98,624.75,1.19162988]
[1743002791496,1.22940771,624.97,624.75,1.19162988]
[1743002791700,1.22940771,624.96,624.75,1.19162988]
[1743002791900,1.22940771,624.95,624.75,1.19162988]
[1743002792202,1.22940771,624.94,624.71,1.19162988]
[1743002792401,0.91542665,624.94,624.71,1.19162988]
[1743002793103,3.524,625.01,624.71,1.19162988]
[1743002793303,1.22972099,625.0,624.71,1.19162988]
[1743002793507,1.22972099,624.99,624.71,1.19162988]
[1743002793699,1.22972099,624.98,624.71,1.19162988]
[1743002793903,1.22972099,624.97,624.71,1.19162988]
[1743002794104,2.14565113,624.96,624.71,1.19162988]
[1743002794400,1.22994204,624.95,624.71,1.19162988]
[1743002794604,1.22994204,624.94,624.71,1.19162988]
[1743002794800,1.22994204,624.93,624.71,1.19162988]
[1743002795005,1.22994204,624.92,624.71,1.19162988]
[1743002795199,1.22994204,624.91,624.52,1.19162988]
[1743002795400,1.22994204,624.9,624.52,1.19162988]
[1743002795602,1.22994204,624.89,624.52,1.19162988]
[1743002795810,1.22994204,624.88,624.52,1.19162988]
[1743002796007,1.22994204,624.87,624.52,1.19162988]
[1743002796202,1.22994204,624.86,624.52,1.19162988]
[1743002796405,1.22994204,624.85,624.52,1.19162988]
[1743002796600,0.91570909,624.86,624.52,1.19162988]
[1743002796804,1.22992993,624.85,624.52,1.19162988]
[1743002797004,2.14563902,624.84,624.52,1.19162988]
[1743002797306,0.91570909,624.84,624.52,1.19162988]
[1743002797508,0.91570909,624.84,624.49,1.19162988]
[1743002797905,3.524,625.01,624.49,1.19162988]
[1743002798107,1.22989634,625.0,624.49,1.19162988]
[1743002798304,1.22992299,624.99,624.49,1.19162988]
[1743002798511,1.22992299,624.98,624.49,1.19162988]
[1743002798705,1.22992299,624.97,624.49,1.19162988]
[1743002798898,0.91580717,624.99,624.49,1.19162988]
[1743002798899,1.22992299,624.96,624.49,1.19162988]
[1743002799102,1.22992299,624.95,624.49,1.19162988]
[1743002799299,1.22992299,624.94,624.49,1.19162988]
[1743002799504,1.22992299,624.93,624.49,1.19162988]
[1743002799708,1.22992299,624.92,624.49,1.19162988]
[1743002801211,1.22992299,624.85,624.5,1.19162988]
[1743002801405,1.22992299,624.84,624.5,1.19162988]
[1743002801605,1.22992299,624.83,624.5,1.19162988]
[1743002801907,1.669,624.9,624.5,1.19162988]
[1743002802108,1.22974208,624.89,624.5,1.19162988]
[1743002802404,1.22974208,624.88,624.53,1.19162988]
[1743002802607,1.22974208,624.87,624.53,1.19162988]
[1743002802808,1.22968948,624.86,624.53,1.19162988]
[1743002803107,1.22968948,624.85,624.53,1.19162988]
[1743002803308,1.22968948,624.84,624.53,1.19162988]
[1743002803509,1.22968948,624.83,624.53,1.19162988]
[1743002803806,1.157,624.83,624.53,1.19162988]
[1743002804009,1.157,624.83,624.52,1.19162988]
[1743002806521,2.165,624.83,624.52,1.19162988]
[1743002810617,2.165,624.83,624.53,1.19162988]
[1743002814028,2.165,624.83,624.51,1.19162988]
[1743002814526,3.496,624.83,624.51,1.19162988]
[1743002814919,2.14466764,624.82,624.51,1.19162988]
[1743002815119,1.22928229,624.81,624.51,1.19162988]
[1743002815319,0.91538535,624.82,624.51,1.19162988]
[1743002815524,4.534,624.83,624.51,1.19162988]
[1743002815724,1.22920568,624.82,624.51,1.19162988]
[1743002816023,4.534,624.83,624.51,1.19162988]
[1743002816224,1.251,624.82,624.51,1.19162988]
[1743002816735,1.251,624.82,624.5,1.19162988]
[1743002817720,1.251,624.82,624.51,0.26082989]
[1743002818726,1.251,624.82,624.58,1.19162988]
[1743002820835,1.251,624.82,624.59,1.19162988]
[1743002822835,1.251,624.82,624.62,1.19162988]
[1743002824737,1.251,624.82,624.57,1.19162988]
[1743002826334,2.98,624.82,624.57,1.19162988]
[1743002827541,2.98,624.82,624.55,1.19162988]
[1743002829037,1.22933894,624.81,624.55,1.19162988]
[1743002829241,0.91543775,624.81,624.55,1.19162988]
[1743002829439,1.22945371,624.8,624.62,1.19162988]
[1743002829644,1.22945371,624.79,624.62,1.19162988]
[1743002829938,1.22945371,624.78,624.62,1.19162988]
[1743002830143,0.91543775,624.79,624.62,1.19162988]
[1743002830445,1.22932335,624.78,624.62,1.19162988]
[1743002830643,0.91543775,624.79,624.62,1.19162988]
[1743002830943,1.22927272,624.78,624.62,1.19162988]
[1743002831243,4.309,624.82,624.62,1.19162988]
[1743002831444,1.22932641,624.81,624.62,1.19162988]
[1743002831641,4.309,624.82,624.47,1.19162988]
[1743002831642,1.22932641,624.8,624.47,1.19162988]
[1743002831942,1.22932641,624.79,624.47,1.19162988]
[1743002832241,1.22932641,624.78,624.47,1.19162988]
[1743002832443,1.178,624.78,624.47,1.19162988]
[1743002832645,1.151,624.77,624.47,1.19162988]